fUSD/lending_fUSD_20240708
["ID","MTS","AMOUNT","RATE_DAILY","PERIOD"]
[331507495,1720444639125,-3903.92,0.00052602,120]
[331507496,1720444639210,-500.0,0.00052602,120]
[331507497,1720444639286,-5951.51,0.00052602,120]
[331507498,1720444639362,-3833.49,0.00052602,120]
[331507499,1720444639438,-1631.9,0.00052602,120]
[331507500,1720444639515,-5146.59,0.00052602,120]
[331507501,1720444639594,-2176.54,0.00052602,120]
[331507502,1720444639672,-6347.68,0.00052602,120]
[331507503,1720444639754,-1088.69,0.00052602,120]
[331507504,1720444639833,-500.0,0.00052602,120]
[331507505,1720444639909,-23579.31,0.00052602,120]
[331507506,1720444639993,-500.0,0.00052602,120]
[331507507,1720444640071,-3966.4,0.00052602,120]
[331507508,1720444640152,-2068.28,0.00052602,120]
[331507509,1720444640370,-2578.3,0.00052602,120]
[331507510,1720444640452,-3921.63,0.00052602,120]
[331507511,1720444640531,-58243.57,0.00052602,120]
[331507512,1720444640607,-508.44,0.00052602,120]
[331507513,1720444640681,-627.12,0.00052602,120]
[331507514,1720444640753,-24232.54,0.00052602,120]
[331507515,1720444640824,-500.0,0.00052602,120]
[331507516,1720444640896,-552.36,0.00052602,120]
[331507517,1720444640973,-500.0,0.00052602,120]
[331507518,1720444641051,-6752.46,0.00052602,120]
[331507519,1720444641127,-5320.57,0.00052602,120]
[331507520,1720444641203,-623.17,0.00052602,120]
[331507521,1720444641280,-500.0,0.00052602,120]
[331507522,1720444641357,-695.92,0.00052602,120]
[331507523,1720444641436,-2080.87,0.00052602,120]
[331507524,1720444641509,-6849.11,0.00052602,120]
[331507525,1720444641583,-500.0,0.00052602,120]
[331507526,1720444641657,-1687.12,0.00052602,120]
[331507527,1720444641736,-1101.67,0.00052602,120]
[331507528,1720444641818,-741.08,0.00052602,120]
[331507529,1720444641897,-500.0,0.00052602,120]
[331507530,1720444641978,-500.0,0.00052602,120]
[331507531,1720444642059,-6100.12,0.00052602,120]
[331507532,1720444642134,-1353.36,0.00052602,120]
[331507533,1720444642215,-500.0,0.00052602,120]
[331507534,1720444642295,-400.36,0.00052602,120]
[331507535,1720444642375,-6271.45,0.00052602,120]
[331507536,1720444642447,-2621.09,0.00052602,120]
[331507537,1720444642518,-2109.31,0.00052602,120]
[331507538,1720444642592,-516.4635468,0.00052602,120]
[331507539,1720444642666,-12321.64,0.00052602,120]
[331507540,1720444642746,-538.98,0.00052602,120]
[331507541,1720444642821,-5668.6,0.00052602,120]
[331507542,1720444642892,-6141.18,0.00052602,120]
[331507543,1720444642968,-500.0,0.00052602,120]
[331507544,1720444643045,-500.0,0.00052602,120]
[331507545,1720444643117,-1783.66,0.00052602,120]
[331507546,1720444643191,-768.98,0.00052602,120]
[331507547,1720444643261,-639.8,0.00052602,120]
[331507548,1720444643333,-1148.58,0.00052602,120]
[331507549,1720444643408,-500.0,0.00052602,120]
[331507550,1720444643487,-1046.64,0.00052602,120]
[331507551,1720444643562,-500.0,0.00052602,120]
[331507552,1720444643634,-500.0,0.00052602,120]
[331507553,1720444643706,-317.21,0.00052602,120]
[331507554,1720444643778,-500.0,0.00052602,120]
[331507555,1720444643851,-2383.64,0.00052602,120]
[331507556,1720444643922,-1380.83,0.00052602,120]
[331507557,1720444644004,-2726.39,0.00052602,120]
[331507558,1720444644093,-1348.55,0.00052602,120]
[331507559,1720444644180,-646.48,0.00052602,120]
[331507560,1720444644264,-5858.28,0.00052602,120]
[331507561,1720444644343,-3087.04,0.00052602,120]
[331507562,1720444644422,-500.0,0.00052602,120]
[331507563,1720444644499,-768.16,0.00052602,120]
[331507564,1720444644578,-1098.42,0.00052602,120]
[331507565,1720444644656,-1151.32,0.00052602,120]
[331507566,1720444644736,-28264.79,0.00052602,120]
[331507567,1720444644816,-500.0,0.00052602,120]
[331507568,1720444644894,-1188.45,0.00052602,120]
[331507569,1720444644978,-3804.3,0.00052602,120]
[331507570,1720444645065,-500.0,0.00052602,120]
[331507571,1720444645148,-634.13,0.00052602,120]
[331507572,1720444645233,-1074.63,0.00052602,120]
[331507573,1720444645324,-1971.31,0.00052602,120]
[331507574,1720444645411,-5641.11,0.00052602,120]
[331507575,1720444645500,-972.69,0.00052602,120]
[331507576,1720444645581,-500.0,0.00052602,120]
[331507577,1720444645660,-652.19,0.00052602,120]
[331507578,1720444645741,-500.0,0.00052602,120]
[331507579,1720444645821,-500.0,0.00052602,120]
[331507580,1720444645898,-1765.23,0.00052602,120]
[331507581,1720444645977,-1216.89,0.00052602,120]
[331507582,1720444646057,-500.0,0.00052602,120]
[331507583,1720444646136,-500.0,0.00052602,120]
[331507584,1720444646217,-500.0,0.00052602,120]
[331507585,1720444646299,-5055.86,0.00052602,120]
[331507586,1720444646378,-500.0,0.00052602,120]
[331507587,1720444646457,-711.2,0.00052602,120]
[331507588,1720444646535,-2570.12,0.00052602,120]
[331507589,1720444646614,-2420.66,0.00052602,120]
[331507590,1720444646693,-2264.16,0.00052602,120]
[331507591,1720444646772,-672.24,0.00052602,120]
[331507592,1720444646852,-3711.44,0.00052602,120]
[331507593,1720444646933,-3195.91,0.00052602,120]
[331507594,1720444647012,-500.0,0.00052602,120]
[331507595,1720444647092,-500.0,0.00052602,120]
[331507596,1720444647175,-2590.75,0.00052602,120]
[331507597,1720444647254,-822.01,0.00052602,120]
[331507598,1720444647607,-3178.37,0.00052602,120]
[331507599,1720444647687,-500.0,0.00052602,120]
[331507600,1720444647759,-1501.03,0.00052602,120]
[331507601,1720444647833,-4176.17,0.00052602,120]
[331507602,1720444647904,-4652.58,0.00052602,120]
[331507603,1720444647979,-500.0,0.00052602,120]
[331507604,1720444648056,-607.4,0.00052602,120]
[331507605,1720444648130,-1039.34,0.00052602,120]
[331507606,1720444648201,-500.0,0.00052602,120]
[331507607,1720444648273,-517.37,0.00052602,120]
[331507608,1720444648344,-724.29,0.00052602,120]
[331507609,1720444648417,-500.0,0.00052602,120]
[331507610,1720444648490,-1620.57,0.00052602,120]
[331507611,1720444648565,-1793.43,0.00052602,120]
[331507612,1720444648640,-12165.5,0.00052602,120]
[331507613,1720444648714,-976.96,0.00052602,120]
[331507614,1720444648784,-2857.78,0.00052602,120]
[331507615,1720444648859,-935.81,0.00052602,120]
[331507616,1720444648934,-794.19,0.00052602,120]
[331507617,1720444649017,-1096.71,0.00052602,120]
[331507618,1720444649107,-812.1,0.00052602,120]
[331507619,1720444649194,-2680.32,0.00052602,120]
[331507620,1720444649273,-1019.65,0.00052602,120]
[331507621,1720444649350,-500.0,0.00052602,120]
[331507622,1720444649427,-1152.98,0.00052602,120]
[331507623,1720444649508,-7204.83,0.00052602,120]
[331507624,1720444649589,-2326.97,0.00052602,120]
[331507625,1720444649664,-2038.8,0.00052602,120]
[331507626,1720444649739,-1237.99,0.00052602,120]
[331507627,1720444649817,-671.15,0.00052602,120]
[331507628,1720444649891,-507.99,0.00052602,120]
[331507629,1720444649972,-500.0,0.00052602,120]
[331507630,1720444650055,-943.16,0.00052602,120]
[331507631,1720444650136,-5931.18,0.00052602,120]
[331507632,1720444650217,-4626.82,0.00052602,120]
[331507633,1720444650298,-789.69,0.00052602,120]
[331507634,1720444650379,-1802.66,0.00052602,120]
[331507635,1720444650466,-2327.97,0.00052602,120]
[331507636,1720444650552,-2045.63,0.00052602,120]
[331507637,1720444650636,-2179.21,0.00052602,120]
[331507638,1720444650716,-679.68,0.00052602,120]
[331507639,1720444650797,-500.0,0.00052602,120]
[331507640,1720444650877,-5851.04,0.00052602,120]
[331507641,1720444650960,-790.26,0.00052602,120]
[331507642,1720444651046,-3857.14,0.00052602,120]
[331507643,1720444651128,-376.64852288,0.00052602,120]
[331507644,1720444651207,-484.56464359,0.00052602,120]
[331507645,1720444651286,-918.0,0.00052602,120]
[331507646,1720444651366,-1071.27,0.00052602,120]
[331507647,1720444651444,-500.0,0.00052602,120]
[331507648,1720444651523,-1080.21,0.00052602,120]
[331507649,1720444651599,-971.7,0.00052602,120]
[331507650,1720444651676,-9335.91,0.00052602,120]
[331507651,1720444651752,-500.0,0.00052602,120]
[331507652,1720444651829,-1237.8,0.00052602,120]
[331507653,1720444651907,-500.0,0.00052602,120]
[331507654,1720444651985,-500.0,0.00052602,120]
[331507655,1720444652069,-500.0,0.00052602,120]
[331507656,1720444652150,-4880.04,0.00052602,120]
[331507657,1720444652228,-836.04,0.00052602,120]
[331507658,1720444652298,-2472.65,0.00052602,120]
[331507659,1720444652364,-1021.84,0.00052602,120]
[331507660,1720444652431,-550.11,0.00052602,120]
[331507661,1720444652499,-500.0,0.00052602,120]
[331507662,1720444652563,-500.0,0.00052602,120]
[331507663,1720444652625,-1033.51,0.00052602,120]
[331507664,1720444652710,-500.0,0.00052602,120]
[331507665,1720444652787,-820.16,0.00052602,120]
[331507666,1720444652860,-1695.51,0.00052602,120]
[331507667,1720444652934,-4157.78,0.00052602,120]
[331507668,1720444653008,-511.6,0.00052602,120]
[331507669,1720444653087,-3132.94,0.00052602,120]
[331507670,1720444653220,-1913.66,0.00052602,120]
[331507671,1720444653291,-500.0,0.00052602,120]
[331507672,1720444653360,-1698.07,0.00052602,120]
[331507673,1720444653431,-652.08,0.00052602,120]
[331507674,1720444653505,-615.35551303,0.00052602,120]
[331507675,1720444653581,-500.0,0.00052602,120]
[331507676,1720444653651,-637.31,0.00052602,120]
[331507677,1720444653722,-572.94,0.00052602,120]
[331507678,1720444653792,-3335.79,0.00052602,120]
[331507679,1720444653860,-322.21539094,0.00052602,120]
[331507680,1720444653929,-1910.14,0.00052602,120]
[331507681,1720444654005,-2108.8,0.00052602,120]
[331507682,1720444654087,-694.53,0.00052602,120]
[331507683,1720444654171,-500.0,0.00052602,120]
[331507684,1720444654249,-500.0,0.00052602,120]
[331507685,1720444654326,-1154.16,0.00052602,120]
[331507686,1720444654404,-1564.34,0.00052602,120]
[331507687,1720444654482,-500.0,0.00052602,120]
[331507688,1720444654564,-2059.4,0.00052602,120]
[331507689,1720444654643,-3033.38,0.00052602,120]
[331507690,1720444654718,-500.0,0.00052602,120]
[331507691,1720444654793,-465.61004596,0.00052602,120]
[331507692,1720444654867,-989.58,0.00052602,120]
[331507693,1720444654943,-500.0,0.00052602,120]
[331507694,1720444655022,-2399.84,0.00052602,120]
[331507695,1720444655102,-303.86596449,0.00052602,120]
[331507696,1720444655176,-500.0,0.00052602,120]
[331507697,1720444655252,-1672.29,0.00052602,120]
[331507698,1720444655328,-500.0,0.00052602,120]
[331507699,1720444655406,-1604.31,0.00052602,120]
[331507700,1720444655485,-500.0,0.00052602,120]
[331507701,1720444655564,-500.0,0.00052602,120]
[331507702,1720444655642,-500.0,0.00052602,120]
[331507703,1720444655718,-2417.35,0.00052602,120]
[331507704,1720444655795,-500.0,0.00052602,120]
[331507705,1720444655873,-500.0,0.00052602,120]
[331507706,1720444655953,-691.6,0.00052602,120]
[331507707,1720444656032,-1416.43,0.00052602,120]
[331507708,1720444656110,-972.54,0.00052602,120]
[331507709,1720444656191,-500.0,0.00052602,120]
[331507710,1720444656273,-1198.2,0.00052602,120]
[331507711,1720444656355,-992.98,0.00052602,120]
[331507712,1720444656433,-1035.8,0.00052602,120]
[331507713,1720444656513,-542.92,0.00052602,120]
[331507714,1720444656594,-3821.85,0.00052602,120]
[331507715,1720444656672,-500.0,0.00052602,120]
[331507716,1720444656746,-239.12412057,0.00052602,120]
[331507717,1720444656822,-587.73,0.00052602,120]
[331507718,1720444656901,-971.56,0.00052602,120]
[331507719,1720444656981,-1317.09,0.00052602,120]
[331507720,1720444657061,-500.0,0.00052602,120]
[331507721,1720444657144,-1389.08,0.00052602,120]
[331507722,1720444657225,-1639.49,0.00052602,120]
[331507723,1720444657308,-867.82,0.00052602,120]
[331507724,1720444657384,-500.0,0.00052602,120]
[331507725,1720444657458,-500.0,0.00052602,120]
[331507726,1720444657530,-500.0,0.00052602,120]
[331507727,1720444657604,-500.0,0.00052602,120]
[331507728,1720444657679,-615.39,0.00052602,120]
[331507729,1720444657756,-500.0,0.00052602,120]
[331507730,1720444657831,-2430.97,0.00052602,120]
[331507731,1720444657904,-500.0,0.00052602,120]
[331507732,1720444657979,-500.0,0.00052602,120]
[331507733,1720444658052,-2066.55,0.00052602,120]
[331507734,1720444658127,-921.41,0.00052602,120]
[331507735,1720444658201,-548.85,0.00052602,120]
[331507736,1720444658278,-500.0,0.00052602,120]
[331507737,1720444658355,-346.81281513,0.00052602,120]
[331507738,1720444658427,-1045.8,0.00052602,120]
[331507739,1720444658503,-2785.91,0.00052602,120]
[331507740,1720444658579,-3346.99,0.00052602,120]
[331507741,1720444658654,-500.0,0.00052602,120]
[331507742,1720444658726,-613.69,0.00052602,120]
[331507743,1720444658797,-500.0,0.00052602,120]
[331507744,1720444658866,-2884.68,0.00052602,120]
[331507745,1720444658936,-1223.29,0.00052602,120]
[331507746,1720444659015,-521.67,0.00052602,120]
[331507747,1720444659104,-1430.22,0.00052602,120]
[331507748,1720444659194,-500.0,0.00052602,120]
[331507749,1720444659276,-1451.36,0.00052602,120]
[331507750,1720444659359,-501.70156131,0.00052602,120]
[331507751,1720444659441,-611.61,0.00052602,120]
[331507752,1720444659523,-729.84,0.00052602,120]
[331507753,1720444659602,-919.43,0.00052602,120]
[331507754,1720444659681,-500.0,0.00052602,120]
[331507755,1720444659761,-500.0,0.00052602,120]
[331507756,1720444659842,-1252.38,0.00052602,120]
[331507757,1720444659922,-902.66,0.00052602,120]
[331507758,1720444660008,-1130.53,0.00052602,120]
[331507759,1720444660093,-1710.79,0.00052602,120]
[331507760,1720444660177,-1387.34,0.00052602,120]
[331507761,1720444660261,-558.45,0.00052602,120]
[331507762,1720444660344,-801.29,0.00052602,120]
[331507763,1720444660426,-595.41,0.00052602,120]
[331507764,1720444660506,-500.0,0.00052602,120]
[331507765,1720444660585,-500.0,0.00052602,120]
[331507766,1720444660664,-681.95,0.00052602,120]
[331507767,1720444660744,-647.19,0.00052602,120]
[331507768,1720444660829,-500.0,0.00052602,120]
[331507769,1720444660908,-500.0,0.00052602,120]
[331507770,1720444660986,-500.0,0.00052602,120]
[331507771,1720444661062,-920.91,0.00052602,120]
[331507772,1720444661138,-809.57,0.00052602,120]
[331507773,1720444661213,-508.51,0.00052602,120]
[331507774,1720444661417,-866.07,0.00052602,120]
[331507775,1720444661496,-1342.46,0.00052602,120]
[331507776,1720444661574,-500.0,0.00052602,120]
[331507777,1720444661653,-669.08,0.00052602,120]
[331507778,1720444661729,-500.0,0.00052602,120]
[331507779,1720444661806,-500.0,0.00052602,120]
[331507780,1720444661881,-924.87,0.00052602,120]
[331507781,1720444661965,-1526.59,0.00052602,120]
[331507782,1720444662049,-2651.63,0.00052602,120]
[331507783,1720444662129,-500.0,0.00052602,120]
[331507784,1720444662203,-2744.63,0.00052602,120]
[331507785,1720444662273,-2267.0,0.00052602,120]
[331507786,1720444662344,-500.0,0.00052602,120]
[331507787,1720444662416,-574.0,0.00052602,120]
[331507788,1720444662490,-775.01,0.00052602,120]
[331507789,1720444662563,-500.0,0.00052602,120]
[331507790,1720444662634,-500.0,0.00052602,120]
[331507791,1720444662705,-1695.04,0.00052602,120]
[331507792,1720444662774,-500.0,0.00052602,120]
[331507793,1720444662845,-500.0,0.00052602,120]
[331507794,1720444662916,-500.0,0.00052602,120]
[331507795,1720444662991,-1245.56,0.00052602,120]
[331507796,1720444663067,-785.15,0.00052602,120]
[331507797,1720444663141,-1245.98,0.00052602,120]
[331507798,1720444663216,-1155.34,0.00052602,120]
[331507799,1720444663290,-500.0,0.00052602,120]
[331507800,1720444663365,-500.0,0.00052602,120]
[331507801,1720444663444,-555.03,0.00052602,120]
[331507802,1720444663519,-803.39,0.00052602,120]
[331507803,1720444663602,-500.0,0.00052602,120]
[331507804,1720444663680,-1305.54,0.00052602,120]
[331507805,1720444663758,-949.65,0.00052602,120]
[331507806,1720444663832,-500.0,0.00052602,120]
[331507807,1720444663905,-500.0,0.00052602,120]
[331507808,1720444663980,-500.0,0.00052602,120]
[331507809,1720444664069,-1347.23,0.00052602,120]
[331507810,1720444664158,-568.39,0.00052602,120]
[331507811,1720444664238,-500.0,0.00052602,120]
[331507812,1720444664317,-500.0,0.00052602,120]
[331507813,1720444664401,-784.35,0.00052602,120]
[331507814,1720444664490,-796.74,0.00052602,120]
[331507815,1720444664572,-304.16,0.00052602,120]
[331507816,1720444664650,-500.0,0.00052602,120]
[331507817,1720444664730,-838.64,0.00052602,120]
[331507818,1720444664804,-500.0,0.00052602,120]
[331507819,1720444664879,-739.18,0.00052602,120]
[331507820,1720444664955,-995.21,0.00052602,120]
[331507821,1720444665032,-1155.36,0.00052602,120]
[331507822,1720444665108,-751.81,0.00052602,120]
[331507823,1720444665186,-1142.72,0.00052602,120]
[331507824,1720444665263,-2126.32,0.00052602,120]
[331507825,1720444665339,-1163.78,0.00052602,120]
[331507826,1720444665418,-743.53,0.00052602,120]
[331507827,1720444665498,-500.0,0.00052602,120]
[331507828,1720444665578,-934.66,0.00052602,120]
[331507829,1720444665653,-995.22,0.00052602,120]
[331507830,1720444665731,-784.36,0.00052602,120]
[331507831,1720444665808,-1579.18,0.00052602,120]
[331507832,1720444665886,-1658.26,0.00052602,120]
[331507833,1720444665965,-500.0,0.00052602,120]
[331507834,1720444666043,-500.0,0.00052602,120]
[331507835,1720444666122,-580.63,0.00052602,120]
[331507836,1720444666199,-500.0,0.00052602,120]
[331507837,1720444666278,-693.77,0.00052602,120]
[331507838,1720444666360,-633.12,0.00052602,120]
[331507839,1720444666439,-1079.99,0.00052602,120]
[331507840,1720444666516,-510.79,0.00052602,120]
[331507841,1720444666594,-500.0,0.00052602,120]
[331507842,1720444666669,-534.95,0.00052602,120]
[331507843,1720444666743,-500.0,0.00052602,120]
[331507844,1720444666817,-808.16,0.00052602,120]
[331507845,1720444666894,-2055.98,0.00052602,120]
[331507846,1720444666975,-652.14,0.00052602,120]
[331507847,1720444667063,-500.0,0.00052602,120]
[331507848,1720444667149,-837.72,0.00052602,120]
[331507849,1720444667233,-500.0,0.00052602,120]
[331507850,1720444667315,-974.55,0.00052602,120]
[331507851,1720444667391,-500.0,0.00052602,120]
[331507852,1720444667470,-176.51884312,0.00052602,120]
[331507853,1720444667546,-668.71,0.00052602,120]
[331507854,1720444667622,-918.92,0.00052602,120]
[331507855,1720444667696,-733.46,0.00052602,120]
[331507856,1720444667774,-500.0,0.00052602,120]
[331507857,1720444667853,-512.29799194,0.00052602,120]
[331507858,1720444667930,-500.0,0.00052602,120]
[331507859,1720444668005,-843.38,0.00052602,120]
[331507860,1720444668086,-777.5,0.00052602,120]
[331507861,1720444668163,-500.0,0.00052602,120]
[331507862,1720444668235,-500.0,0.00052602,120]
[331507863,1720444668586,-500.0,0.00052602,120]
[331507864,1720444668665,-500.0,0.00052602,120]
[331507865,1720444668740,-500.0,0.00052602,120]
[331507866,1720444668814,-852.37,0.00052602,120]
[331507867,1720444668888,-1186.97,0.00052602,120]
[331507868,1720444668967,-472.77944987,0.00052602,120]
[331507869,1720444669054,-500.0,0.00052602,120]
[331507870,1720444669140,-1241.83,0.00052602,120]
[331507871,1720444669223,-807.64,0.00052602,120]
[331507872,1720444669300,-500.0,0.00052602,120]
[331507873,1720444669378,-803.38,0.00052602,120]
[331507874,1720444669455,-657.3,0.00052602,120]
[331507875,1720444669536,-1355.78,0.00052602,120]
[331507876,1720444669618,-500.0,0.00052602,120]
[331507877,1720444669697,-500.0,0.00052602,120]
[331507878,1720444669775,-500.0,0.00052602,120]
[331507879,1720444669854,-500.0,0.00052602,120]
[331507880,1720444669931,-500.0,0.00052602,120]
[331507881,1720444670009,-500.0,0.00052602,120]
[331507882,1720444670090,-500.0,0.00052602,120]
[331507883,1720444670169,-500.0,0.00052602,120]
[331507884,1720444670249,-500.0,0.00052602,120]
[331507885,1720444670330,-525.31,0.00052602,120]
[331507886,1720444670411,-682.0,0.00052602,120]
[331507887,1720444670490,-500.0,0.00052602,120]
[331507888,1720444670567,-500.0,0.00052602,120]
[331507889,1720444670643,-500.0,0.00052602,120]
[331507890,1720444670718,-1095.38,0.00052602,120]
[331507891,1720444670793,-1081.98,0.00052602,120]
[331507892,1720444670865,-766.48,0.00052602,120]
[331507893,1720444670937,-500.0,0.00052602,120]
[331507894,1720444671013,-500.0,0.00052602,120]
[331507895,1720444671087,-518.59789864,0.00052602,120]
[331507896,1720444671160,-712.75,0.00052602,120]
[331507897,1720444671234,-500.0,0.00052602,120]
[331507898,1720444671306,-989.73,0.00052602,120]
[331507899,1720444671378,-887.36,0.00052602,120]
[331507900,1720444671452,-568.6,0.00052602,120]
[331507901,1720444671527,-500.0,0.00052602,120]
[331507902,1720444671603,-665.12,0.00052602,120]
[331507903,1720444671674,-464.05617624,0.00052602,120]
[331507904,1720444671746,-500.0,0.00052602,120]
[331507905,1720444671815,-500.0,0.00052602,120]
[331507906,1720444671888,-785.44,0.00052602,120]
[331507907,1720444671964,-2486.56,0.00052602,120]
[331507908,1720444672044,-296.00778006,0.00052602,120]
[331507909,1720444672126,-500.0,0.00052602,120]
[331507910,1720444672206,-217.0880774,0.00052602,120]
[331507911,1720444672290,-500.0,0.00052602,120]
[331507912,1720444672367,-500.0,0.00052602,120]
[331507913,1720444672441,-500.0,0.00052602,120]
[331507914,1720444672521,-648.68842853,0.00052602,120]
[331507915,1720444672606,-891.8,0.00052602,120]
[331507916,1720444672680,-500.0,0.00052602,120]
[331507917,1720444672752,-500.0,0.00052602,120]
[331507918,1720444672825,-608.44,0.00052602,120]
[331507919,1720444672900,-218.69245313,0.00052602,120]
[331507920,1720444672975,-705.57,0.00052602,120]
[331507921,1720444673051,-500.0,0.00052602,120]
[331507922,1720444673125,-453.26563269,0.00052602,120]
[331507923,1720444673201,-502.79,0.00052602,120]
[331507924,1720444673278,-500.0,0.00052602,120]
[331507925,1720444673348,-605.18,0.00052602,120]
[331507926,1720444673417,-500.0,0.00052602,120]
[331507927,1720444673487,-500.0,0.00052602,120]
[331507928,1720444673558,-500.0,0.00052602,120]
[331507929,1720444673627,-565.57692605,0.00052602,120]
[331507930,1720444673696,-500.0,0.00052602,120]
[331507931,1720444673765,-403.38854188,0.00052602,120]
[331507932,1720444673835,-500.0,0.00052602,120]
[331507933,1720444673903,-500.0,0.00052602,120]
[331507934,1720444673974,-712.81,0.00052602,120]
[331507935,1720444674120,-534.72,0.00052602,120]
[331507936,1720444674207,-1760.36,0.00052602,120]
[331507937,1720444674286,-800.08,0.00052602,120]
[331507938,1720444674366,-500.0,0.00052602,120]
[331507939,1720444674447,-894.69,0.00052602,120]
[331507940,1720444674524,-723.54,0.00052602,120]
[331507941,1720444674605,-530.59,0.00052602,120]
[331507942,1720444674685,-839.95,0.00052602,120]
[331507943,1720444674765,-511.1,0.00052602,120]
[331507944,1720444674847,-760.52,0.00052602,120]
[331507945,1720444674930,-866.49,0.00052602,120]
[331507946,1720444675015,-500.0,0.00052602,120]
[331507947,1720444675099,-500.0,0.00052602,120]
[331507948,1720444675181,-500.0,0.00052602,120]
[331507949,1720444675263,-500.0,0.00052602,120]
[331507950,1720444675344,-503.75944427,0.00052602,120]
[331507951,1720444675427,-500.0,0.00052602,120]
[331507952,1720444675508,-500.0,0.00052602,120]
[331507953,1720444675589,-500.0,0.00052602,120]
[331507954,1720444675670,-893.31,0.00052602,120]
[331507955,1720444675751,-500.0,0.00052602,120]
[331507956,1720444675833,-500.0,0.00052602,120]
[331507957,1720444675912,-500.0,0.00052602,120]
[331507958,1720444675995,-500.0,0.00052602,120]
[331507959,1720444676076,-500.0,0.00052602,120]
[331507960,1720444676159,-500.0,0.00052602,120]
[331507961,1720444676238,-500.0,0.00052602,120]
[331507962,1720444676319,-1290.88,0.00052602,120]
[331507963,1720444676404,-500.0,0.00052602,120]
[331507964,1720444676493,-500.0,0.00052602,120]
[331507965,1720444676578,-585.61,0.00052602,120]
[331507966,1720444676658,-574.25,0.00052602,120]
[331507967,1720444676738,-500.0,0.00052602,120]
[331507968,1720444676815,-500.0,0.00052602,120]
[331507969,1720444676895,-500.0,0.00052602,120]
[331507970,1720444676977,-509.01749542,0.00052602,120]
[331507971,1720444677065,-891.99,0.00052602,120]
[331507972,1720444677152,-500.0,0.00052602,120]
[331507973,1720444677237,-518.21,0.00052602,120]
[331507974,1720444677325,-500.0,0.00052602,120]
[331507975,1720444677404,-973.06,0.00052602,120]
[331507976,1720444677481,-1101.05,0.00052602,120]
[331507977,1720444677559,-500.0,0.00052602,120]
[331507978,1720444677635,-1143.52,0.00052602,120]
[331507979,1720444677712,-589.06,0.00052602,120]
[331507980,1720444677786,-500.0,0.00052602,120]
[331507981,1720444677863,-729.17,0.00052602,120]
[331507982,1720444677942,-500.0,0.00052602,120]
[331507983,1720444678018,-765.16,0.00052602,120]
[331507984,1720444678092,-538.46,0.00052602,120]
[331507985,1720444678169,-500.0,0.00052602,120]
[331507986,1720444678246,-500.0,0.00052602,120]
[331507987,1720444678321,-577.54,0.00052602,120]
[331507988,1720444678398,-987.37,0.00052602,120]
[331507989,1720444678487,-500.0,0.00052602,120]
[331507990,1720444678563,-500.0,0.00052602,120]
[331507991,1720444678638,-500.0,0.00052602,120]
[331507992,1720444678713,-707.5,0.00052602,120]
[331507993,1720444678785,-943.37,0.00052602,120]
[331507994,1720444678856,-500.0,0.00052602,120]